bitfinex/quotes_SOLUSD_20250406
["timestamp","ask_amount","ask_price","bid_price","bid_amount"]
[1743981543601,71.03087174,104.61,104.56,71.03087174]
[1743981543804,71.03087174,104.58,104.51,52.13914886]
[1743981544027,71.03087174,104.55,104.49,36.1485]
[1743981544241,71.03087174,104.54,104.49,83.25457174]
[1743981544446,26.0,104.59,104.51,71.03087174]
[1743981544735,71.03087174,104.55,104.5,71.03087174]
[1743981545224,71.03087174,104.57,104.52,80.59837174]
[1743981545410,71.03087174,104.55,104.49,12.2237]
[1743981545610,19.07613357,104.57,104.49,21.7937]
[1743981545808,71.03087174,104.51,104.49,12.2237]
[1743981546010,71.03087174,104.52,104.49,12.2237]
[1743981546211,0.42648471,104.55,104.48,0.03]
[1743981546529,152.23087174,104.56,104.51,71.03087174]
[1743981546738,152.23087174,104.56,104.5,71.03087174]
[1743981546739,71.03087174,104.56,104.5,71.03087174]
[1743981546912,71.03087174,104.56,104.51,71.03087174]
[1743981547114,71.03087174,104.56,104.48,33.5289]
[1743981547311,71.03087174,104.54,104.49,71.03087174]
[1743981547713,71.03087174,104.52,104.48,0.03]
[1743981548098,26.0,104.54,104.48,0.03]
[1743981548304,0.42648471,104.57,104.48,9.601]
[1743981548516,26.0,104.55,104.48,9.601]
[1743981548827,81.2,104.58,104.52,71.03087174]
[1743981549003,71.03087174,104.57,104.52,71.03087174]
[1743981549210,71.03087174,104.57,104.53,9.5666]
[1743981549410,9.5604,104.6,104.53,80.59747174]
[1743981549613,71.03087174,104.58,104.53,80.59747174]
[1743981550113,71.03087174,104.55,104.49,9.5702]
[1743981550519,81.2,104.58,104.51,71.03087174]
[1743981550840,0.5,104.63,104.57,71.03087174]
[1743981550841,81.2,104.63,104.57,71.03087174]
[1743981551020,9.5579,104.63,104.57,71.03087174]
[1743981551336,71.03087174,104.59,104.54,22.3448]
[1743981551535,71.03087174,104.57,104.54,12.7795]
[1743981551735,9.5602,104.6,104.54,12.7795]
[1743981551942,71.03087174,104.58,104.54,12.7795]
[1743981552525,71.03087174,104.57,104.54,12.7795]
[1743981552726,71.03087174,104.58,104.54,12.7795]
[1743981552923,71.03087174,104.57,104.54,12.7795]
[1743981553238,9.5638,104.56,104.49,22.5343]
[1743981553410,71.03087174,104.55,104.5,71.03087174]
[1743981553813,71.03087174,104.53,104.49,12.9644]
[1743981554013,71.03087174,104.5,104.48,0.03]
[1743981554214,71.17303331,104.49,104.48,0.03]
[1743981554434,18.64964886,104.5,104.48,0.03]
[1743981554642,71.03087174,104.49,104.48,0.03]
[1743981555029,81.2,104.54,104.48,0.03]
[1743981555210,9.5675,104.52,104.48,0.03]
[1743981555413,71.03087174,104.49,104.48,0.03]
[1743981557131,71.45735645,104.49,104.48,0.03]
[1743981557332,81.02755645,104.49,104.48,0.03]
[1743981557846,80.60107174,104.49,104.48,0.03]
[1743981558047,80.60107174,104.49,104.48,0.0001]
[1743981558048,99.67720531,104.49,104.48,0.0001]
[1743981558423,45.07613357,104.45,104.44,0.03]
[1743981558625,97.45735645,104.45,104.44,0.03]
[1743981558834,53.9959,104.49,104.44,0.03]
[1743981558835,9.5702,104.49,104.44,0.03]
[1743981559034,71.03087174,104.46,104.44,0.03]
[1743981559321,71.03087174,104.48,104.44,0.03]
[1743981559514,71.03087174,104.47,104.44,0.03]
[1743981559926,9.5706,104.49,104.44,71.06087174]
[1743981559927,71.03087174,104.49,104.44,71.06087174]
[1743981560219,71.03087174,104.47,104.44,0.03]
[1743981560621,0.42648471,104.49,104.44,0.03]
[1743981560821,10.46,104.5,104.44,71.06087174]
[1743981561031,9.5687,104.51,104.44,71.06087174]
[1743981561032,71.03087174,104.51,104.46,71.03087174]
[1743981561342,71.03087174,104.54,104.49,71.03087174]
[1743981561539,71.03087174,104.54,104.47,33.5024]
[1743981561747,71.03087174,104.54,104.49,71.03087174]
[1743981561933,71.03087174,104.52,104.47,9.5721]
[1743981562238,71.03087174,104.53,104.48,71.03087174]
[1743981562438,71.03087174,104.52,104.47,71.03087174]
[1743981562838,71.03087174,104.53,104.45,40.1761]
[1743981563019,71.03087174,104.52,104.47,71.03087174]
[1743981563216,71.03087174,104.52,104.45,40.1761]
[1743981563421,71.03087174,104.52,104.47,71.03087174]
[1743981563843,9.85032314,104.54,104.47,80.60267174]
[1743981564046,71.03087174,104.53,104.48,71.03087174]
[1743981564243,71.03087174,104.54,104.49,71.03087174]
[1743981565041,71.03087174,104.53,104.47,9.5718]
[1743981565241,71.03087174,104.52,104.46,9.5726]
[1743981565545,71.03087174,104.53,104.48,71.03087174]
[1743981565754,9.99198471,104.55,104.48,80.60157174]
[1743981566050,71.03087174,104.53,104.48,80.60157174]
[1743981566352,71.03087174,104.53,104.47,9.5717]
[1743981566657,9.99198471,104.55,104.48,71.03087174]
[1743981566965,71.03087174,104.56,104.51,71.03087174]
[1743981567321,91.07387174,104.57,104.48,18.79181043]
[1743981567523,91.07387174,104.57,104.52,71.03087174]
[1743981567725,71.03087174,104.55,104.47,33.502]
[1743981567956,9.5638,104.56,104.47,33.502]
[1743981568132,80.59467174,104.56,104.5,71.03087174]
[1743981568423,81.2,104.61,104.54,71.03087174]
[1743981568623,71.03087174,104.59,104.54,71.03087174]
[1743981568861,81.2,104.61,104.51,12.9777]
[1743981569063,71.03087174,104.58,104.53,71.03087174]
[1743981569359,71.03087174,104.58,104.51,12.9777]
[1743981569569,9.5602,104.6,104.52,71.03087174]
[1743981569728,80.59297174,104.58,104.52,9.5675]
[1743981569933,80.59297174,104.58,104.53,71.03087174]
[1743981570343,9.5614,104.59,104.53,71.03087174]
[1743981570561,9.6216,104.62,104.56,71.03087174]
[1743981570753,0.063,104.62,104.58,71.03087174]
[1743981570936,80.65237174,104.62,104.53,7.096]
[1743981571140,80.65237174,104.62,104.57,71.03087174]
[1743981571343,0.063,104.62,104.59,71.03087174]
[1743981571541,71.03087174,104.61,104.53,7.096]
[1743981571734,71.03087174,104.61,104.56,71.03087174]
[1743981571941,80.65227174,104.62,104.57,80.59377174]
[1743981572253,80.65227174,104.62,104.57,71.03087174]
[1743981572549,71.03087174,104.58,104.53,7.096]
[1743981572753,0.14216157,104.6,104.51,12.9777]
[1743981572754,71.03087174,104.56,104.51,12.9777]
[1743981572928,81.2,104.61,104.53,71.03087174]
[1743981573135,71.03087174,104.6,104.55,71.03087174]
[1743981573327,71.03087174,104.59,104.51,46.4672]
[1743981573646,71.03087174,104.56,104.51,22.5461]
[1743981573845,9.562,104.58,104.52,71.03087174]
[1743981574045,71.03087174,104.57,104.52,71.03087174]
[1743981574365,71.03087174,104.56,104.51,12.9777]
[1743981574563,9.562,104.58,104.51,84.00857174]
[1743981574859,9.562,104.58,104.52,71.03087174]
[1743981575032,71.03087174,104.57,104.52,71.03087174]
[1743981575828,80.59537174,104.56,104.51,12.9777]
[1743981576026,71.03087174,104.55,104.51,12.9777]
[1743981576240,71.03087174,104.52,104.47,12.3894]
[1743981576445,71.03087174,104.51,104.47,12.3894]
[1743981576641,0.14216157,104.54,104.47,12.3894]
[1743981576849,19.07613357,104.54,104.47,83.42027174]
[1743981577125,9.5645,104.56,104.5,71.03087174]
[1743981577328,9.5615,104.59,104.53,71.03087174]
[1743981577627,9.5615,104.59,104.54,71.03087174]
[1743981577843,80.59237174,104.59,104.54,71.03087174]
[1743981578037,71.03087174,104.57,104.47,60.25]
[1743981578330,71.03087174,104.56,104.47,60.25]
[1743981578529,71.03087174,104.56,104.51,71.03087174]
[1743981578831,81.2,104.58,104.52,71.03087174]
[1743981579237,71.03087174,104.57,104.52,71.03087174]
[1743981579431,81.2,104.58,104.51,71.03087174]
[1743981579631,81.2,104.58,104.52,71.03087174]
[1743981579846,152.23087174,104.58,104.53,80.59697174]
[1743981580056,81.2,104.58,104.53,80.59697174]
[1743981580259,9.5615,104.59,104.54,71.03087174]
[1743981580557,71.03087174,104.58,104.52,9.5672]
[1743981580741,71.03087174,104.58,104.53,71.03087174]
[1743981581052,71.03087174,104.58,104.52,9.5672]
[1743981581251,20.0405,104.6,104.5,18.79181043]
[1743981581451,71.03087174,104.58,104.5,18.79181043]
[1743981581657,71.03087174,104.58,104.53,71.03087174]
[1743981581855,71.03087174,104.58,104.52,9.5674]
[1743981581856,80.59317174,104.58,104.52,9.5674]
[1743981582032,71.03087174,104.55,104.47,36.3194]
[1743981582231,71.03087174,104.55,104.5,71.03087174]
[1743981582733,71.03087174,104.56,104.51,71.03087174]
[1743981583852,80.59477174,104.56,104.48,9.5712]
[1743981584057,71.03087174,104.55,104.5,71.03087174]
[1743981584258,9.5632,104.57,104.51,71.03087174]
[1743981584431,71.03087174,104.56,104.51,71.03087174]
[1743981584751,90.7615,104.59,104.53,71.03087174]
[1743981584960,81.51087174,104.6,104.55,71.03087174]
[1743981585456,81.51087174,104.6,104.51,7.1749]
[1743981585457,91.07107174,104.6,104.54,71.03087174]
[1743981585658,0.03054263,104.59,104.55,71.03087174]
[1743981586150,0.03054263,104.59,104.56,71.03087174]
[1743981586353,0.03054263,104.59,104.53,9.5666]
[1743981586536,71.06141437,104.59,104.54,71.03087174]
[1743981586742,0.03054263,104.59,104.54,71.03087174]
[1743981586933,71.06141437,104.59,104.52,9.5671]
[1743981587138,71.06141437,104.59,104.54,71.03087174]
[1743981587459,71.03087174,104.56,104.51,7.1749]
[1743981587762,9.562,104.58,104.52,71.03087174]
[1743981587953,71.03087174,104.57,104.52,71.03087174]
[1743981588347,71.03087174,104.56,104.51,78.20577174]
[1743981588969,71.03087174,104.55,104.47,19.2907]
[1743981589144,71.03087174,104.52,104.47,19.2907]
[1743981589345,71.03087174,104.52,104.47,99.89357174]
[1743981589657,81.2,104.57,104.5,71.03087174]
[1743981589860,81.2,104.57,104.51,71.03087174]
[1743981590059,19.07613357,104.58,104.5,9.5692]
[1743981590060,0.03054263,104.59,104.53,71.03087174]
[1743981590257,0.03054263,104.59,104.47,38.36683357]
[1743981590258,71.03087174,104.55,104.48,9.5712]
[1743981590574,71.03087174,104.53,104.48,71.03087174]
[1743981590747,71.03087174,104.52,104.47,99.89317174]
[1743981591351,100.27613357,104.57,104.48,71.03087174]
[1743981591552,81.2,104.56,104.48,71.03087174]
[1743981591752,71.03087174,104.54,104.49,71.03087174]
[1743981591951,71.03087174,104.55,104.5,71.03087174]
[1743981592240,9.5629,104.57,104.51,71.03087174]
[1743981592447,33.4703,104.57,104.49,9.5696]
[1743981592651,9.59204263,104.59,104.52,71.03087174]
[1743981592864,0.03054263,104.59,104.55,71.03087174]
[1743981593244,0.03054263,104.59,104.52,71.03087174]
[1743981593440,0.03054263,104.59,104.56,71.03087174]
[1743981593641,0.063,104.61,104.58,168.06174348]
[1743981593865,0.063,104.68,104.61,9.5593]
[1743981594070,0.063,104.68,104.66,71.03087174]
[1743981594365,0.063,104.68,104.64,83.71417174]
[1743981594872,0.063,104.68,104.67,71.03087174]
[1743981595175,0.063,104.68,104.64,12.6833]
[1743981595471,0.063,104.68,104.64,83.71417174]
[1743981595939,0.063,104.68,104.65,9.5556]
[1743981596141,0.063,104.68,104.67,71.03087174]
[1743981596567,0.063,104.68,104.64,22.2397]
[1743981596778,0.063,104.68,104.65,71.03087174]
[1743981596980,0.063,104.68,104.64,83.71417174]
[1743981597159,0.063,104.68,104.64,93.27057174]
[1743981597567,0.063,104.68,104.64,22.2397]
[1743981597764,0.063,104.68,104.66,71.03087174]
[1743981598064,0.063,104.68,104.65,71.03087174]
[1743981598266,0.063,104.68,104.64,12.6833]
[1743981598444,71.09387174,104.68,104.64,12.6833]
[1743981598647,0.063,104.68,104.63,71.03087174]
[1743981598982,0.063,104.68,104.64,71.03087174]
[1743981599155,0.063,104.68,104.67,71.03087174]
[1743981599344,0.063,104.68,104.65,18.64964886]
[1743981599539,0.063,104.68,104.63,4.86148694]
[1743981599775,0.063,104.68,104.64,71.03087174]
[1743981599950,0.063,104.68,104.65,9.5556]
[1743981600271,71.09387174,104.68,104.61,9.5593]
[1743981600466,71.03087174,104.67,104.62,71.03087174]
[1743981600774,71.09387174,104.68,104.61,9.5593]
[1743981600948,71.03087174,104.67,104.62,71.03087174]
[1743981601143,0.063,104.68,104.6,22.3992]
[1743981601144,71.03087174,104.66,104.6,22.3992]
[1743981601466,71.03087174,104.65,104.6,83.86997174]
[1743981601650,0.063,104.68,104.6,93.43007174]
[1743981601974,71.03087174,104.64,104.6,12.8391]
[1743981602141,0.063,104.68,104.63,71.03087174]
[1743981602343,71.09387174,104.68,104.6,22.399]
[1743981602543,0.063,104.68,104.66,71.03087174]
[1743981602783,0.063,104.68,104.67,71.03087174]
[1743981603151,0.063,104.7,104.69,38.5616]
[1743981603353,0.063,104.74,104.69,180.62334348]
[1743981603569,0.063,104.74,104.72,71.03087174]
[1743981603746,0.063,104.79,104.73,97.17303331]
[1743981603944,0.063,104.79,104.76,71.03087174]
[1743981604157,0.063,104.79,104.77,71.03087174]
[1743981604578,0.063,104.79,104.74,9.5474]
[1743981604756,0.063,104.79,104.76,71.03087174]
[1743981605093,0.063,104.79,104.74,9.5474]
[1743981605264,0.063,104.79,104.76,71.03087174]
[1743981605568,0.063,104.79,104.77,71.03087174]
[1743981606142,0.063,104.79,104.76,71.03087174]
[1743981606572,0.063,104.79,104.73,9.5481]
[1743981606875,0.063,104.79,104.78,71.03087174]
[1743981607560,0.063,104.79,104.78,89.82268217]
[1743981607750,0.063,104.8,104.78,89.6805206]
[1743981607944,0.063,104.8,104.78,71.03087174]
[1743981608147,0.063,104.8,104.77,83.29917174]
[1743981608375,0.063,104.8,104.78,71.03087174]
[1743981608571,71.03087174,104.85,104.79,71.03087174]
[1743981608755,71.03087174,104.87,104.82,71.03087174]
[1743981608951,9.5347,104.88,104.82,71.03087174]
[1743981609264,36.59295195,104.89,104.82,71.03087174]
[1743981609567,71.03087174,104.87,104.82,71.03087174]
[1743981609765,36.59295195,104.89,104.77,45.95892314]
[1743981609960,80.56807174,104.86,104.79,9.5428]
[1743981610275,80.56657174,104.87,104.82,71.03087174]
[1743981610466,9.535,104.88,104.82,71.03087174]
[1743981610875,71.03087174,104.87,104.82,71.03087174]
[1743981611071,36.59295195,104.89,104.82,71.03087174]
[1743981611245,36.59295195,104.89,104.83,71.03087174]
[1743981611451,23.8302,104.91,104.8,18.79181043]
[1743981611452,71.03087174,104.88,104.8,18.79181043]
[1743981611779,71.03087174,104.85,104.78,9.5434]
[1743981611962,19.07613357,104.86,104.79,71.03087174]
[1743981612285,71.03087174,104.83,104.78,71.03087174]
[1743981612493,0.14216157,104.84,104.75,71.03087174]
[1743981612672,81.34216157,104.85,104.77,71.03087174]
[1743981612874,22.17,104.87,104.79,71.03087174]
[1743981613086,22.17,104.87,104.76,71.03087174]
[1743981613087,71.03087174,104.84,104.76,71.03087174]
[1743981613253,71.03087174,104.83,104.78,71.03087174]
[1743981613457,71.03087174,104.82,104.77,71.03087174]
[1743981613679,52.45073357,104.87,104.74,18.79181043]
[1743981613869,71.03087174,104.83,104.78,71.03087174]
[1743981614079,52.45073357,104.87,104.78,71.03087174]
[1743981614389,71.03087174,104.82,104.74,0.14216157]
[1743981614559,71.03087174,104.82,104.77,71.03087174]
[1743981614884,71.03087174,104.82,104.75,28.19614886]
[1743981615084,71.03087174,104.83,104.78,71.03087174]
[1743981615457,71.03087174,104.84,104.76,71.03087174]
[1743981615675,71.03087174,104.8,104.74,9.5474]
[1743981615953,71.03087174,104.77,104.73,12.3932]
[1743981616254,71.03087174,104.76,104.71,87.57037174]
[1743981616449,71.03087174,104.74,104.69,12.5383]
[1743981616649,71.03087174,104.72,104.66,16.6794]
[1743981616905,71.03087174,104.76,104.68,71.03087174]
[1743981617218,71.03087174,104.72,104.67,71.03087174]
[1743981617365,71.03087174,104.73,104.68,71.03087174]
[1743981617572,90.10700531,104.76,104.67,71.03087174]
[1743981617772,71.03087174,104.71,104.66,16.6793]
[1743981618006,33.4128,104.75,104.67,71.03087174]
[1743981618182,71.03087174,104.7,104.65,12.5383]
[1743981618377,71.03087174,104.68,104.61,12.2686]
[1743981618712,71.03087174,104.7,104.62,71.03087174]
[1743981618877,71.03087174,104.68,104.63,71.03087174]
[1743981619193,71.03087174,104.68,104.61,21.8276]
[1743981619389,71.03087174,104.67,104.62,71.03087174]
[1743981619586,71.03087174,104.7,104.62,71.03087174]
[1743981619786,71.03087174,104.7,104.61,21.8276]
[1743981619787,71.03087174,104.7,104.65,71.03087174]
[1743981619993,71.03087174,104.69,104.64,9.5565]
[1743981620292,71.03087174,104.69,104.64,80.58737174]
[1743981620498,90.7475,104.74,104.67,71.03087174]
[1743981620678,80.71863331,104.76,104.64,104.47877174]
[1743981620872,71.03087174,104.72,104.64,104.47877174]
[1743981621076,18.64964886,104.75,104.66,71.03087174]
[1743981621296,71.03087174,104.72,104.64,104.47877174]
[1743981621494,18.64964886,104.75,104.66,71.03087174]
[1743981621699,71.03087174,104.72,104.67,71.03087174]
[1743981621896,81.2,104.77,104.7,71.03087174]
[1743981622199,71.03087174,104.73,104.68,71.03087174]
[1743981622394,71.03087174,104.73,104.67,80.58407174]
[1743981622596,80.57647174,104.76,104.68,71.03087174]
[1743981622897,71.03087174,104.75,104.7,71.03087174]
[1743981623277,9.5449,104.77,104.7,71.03087174]
[1743981623476,71.03087174,104.71,104.62,12.7217]
[1743981623675,71.03087174,104.67,104.62,83.75257174]
[1743981623998,9.5532,104.68,104.62,83.75257174]
[1743981624209,71.03087174,104.67,104.62,83.75257174]
[1743981624379,9.5524,104.69,104.62,93.31077174]
[1743981624575,9.5492,104.72,104.65,71.03087174]
[1743981624777,81.2,104.74,104.69,71.03087174]
[1743981624778,152.23087174,104.74,104.69,71.03087174]
[1743981624996,12.6678,104.79,104.69,26.0]
[1743981625177,81.2,104.81,104.72,71.03087174]
[1743981625178,71.03087174,104.77,104.72,71.03087174]
[1743981625385,0.14216157,104.8,104.72,71.03087174]
[1743981625586,71.03087174,104.78,104.73,71.03087174]
[1743981625772,81.2,104.81,104.73,80.57907174]
[1743981625980,71.03087174,104.79,104.7,107.75497174]
[1743981626180,71.03087174,104.75,104.7,12.8479]
[1743981626381,52.47333357,104.8,104.7,12.8479]
[1743981626576,71.03087174,104.74,104.68,7.2232]
[1743981626876,71.03087174,104.74,104.66,31.62351043]
[1743981626877,26.0,104.73,104.66,12.8317]
[1743981627188,71.03087174,104.7,104.66,12.8317]
[1743981627587,71.03087174,104.71,104.66,83.86257174]
[1743981627784,26.0,104.73,104.64,6.7374]
[1743981627785,71.03087174,104.68,104.64,6.7374]
[1743981628101,71.03087174,104.66,104.62,12.8317]
[1743981628604,71.03087174,104.65,104.62,12.8317]
[1743981628779,71.03087174,104.65,104.6,80.59067174]
[1743981628986,71.03087174,104.66,104.61,71.03087174]
[1743981629186,90.7521,104.69,104.61,71.03087174]
[1743981629506,71.03087174,104.66,104.61,71.03087174]
[1743981629706,81.2,104.71,104.65,80.58647174]
[1743981629885,71.03087174,104.69,104.64,80.58697174]
[1743981630592,71.03087174,104.7,104.65,71.03087174]
[1743981630802,152.23087174,104.71,104.66,71.03087174]
[1743981630985,71.03087174,104.7,104.65,71.03087174]
[1743981631382,152.23087174,104.71,104.64,9.5561]
[1743981631701,81.2,104.71,104.67,80.58427174]
[1743981631905,71.03087174,104.72,104.67,80.58427174]
[1743981632285,71.03087174,104.73,104.68,71.03087174]
[1743981632495,71.03087174,104.72,104.67,80.58427174]
[1743981633004,9.5469,104.75,104.68,71.03087174]
[1743981633207,71.03087174,104.7,104.66,12.0242]
[1743981633410,71.03087174,104.7,104.62,12.0242]
[1743981633411,71.03087174,104.67,104.62,12.0242]
[1743981633702,71.03087174,104.69,104.64,71.03087174]
[1743981634099,71.03087174,104.68,104.62,21.5816]
[1743981634302,71.03087174,104.66,104.62,12.0242]
[1743981634493,71.03087174,104.65,104.62,12.0242]
[1743981634691,71.03087174,104.66,104.62,12.0242]
[1743981634883,71.03087174,104.66,104.62,21.5825]
[1743981635080,71.03087174,104.67,104.62,92.61337174]
[1743981635402,71.03087174,104.68,104.63,71.03087174]
[1743981635599,71.03087174,104.69,104.64,71.03087174]
[1743981635799,71.03087174,104.68,104.63,80.58737174]
[1743981635990,71.03087174,104.69,104.64,71.03087174]
[1743981636192,71.03087174,104.69,104.63,9.5565]
[1743981636384,71.03087174,104.68,104.63,9.5565]
[1743981636592,71.03087174,104.69,104.64,71.03087174]
[1743981637600,71.03087174,104.66,104.62,12.0242]
[1743981637796,71.03087174,104.65,104.6,80.59097174]
[1743981638384,9.5542,104.67,104.61,71.03087174]
[1743981638580,9.5542,104.67,104.6,9.5601]
[1743981638889,71.03087174,104.66,104.61,71.03087174]
[1743981639206,94.90897174,104.7,104.62,71.03087174]
[1743981639391,71.03087174,104.69,104.64,71.03087174]
[1743981639705,81.2,104.71,104.65,71.03087174]
[1743981639907,71.03087174,104.72,104.68,71.03087174]
[1743981640607,71.03087174,104.72,104.67,71.03087174]
[1743981640903,71.03087174,104.68,104.62,13.0542]
[1743981641204,152.23087174,104.7,104.62,13.0542]
[1743981641403,81.2,104.69,104.63,71.03087174]
[1743981641703,71.03087174,104.68,104.63,71.03087174]
[1743981641920,71.03087174,104.68,104.63,80.58757174]
[1743981642124,9.5503,104.71,104.64,71.03087174]
[1743981642329,71.03087174,104.71,104.66,71.03087174]
[1743981642512,71.03087174,104.68,104.63,9.5567]
[1743981642805,71.03087174,104.68,104.63,80.58757174]
[1743981642979,33.4228,104.72,104.63,80.58757174]
[1743981643184,71.03087174,104.69,104.64,71.03087174]
[1743981643381,71.03087174,104.66,104.62,13.0542]
[1743981643684,71.03087174,104.64,104.62,13.0542]
[1743981643896,71.03087174,104.64,104.59,77.76827174]
[1743981644096,9.5565,104.65,104.59,87.32887174]
[1743981644304,71.03087174,104.65,104.6,71.03087174]
[1743981644485,9.5538,104.67,104.6,71.03087174]
[1743981644687,90.753,104.68,104.62,71.03087174]
[1743981644905,71.03087174,104.66,104.62,71.03087174]
[1743981645102,71.03087174,104.66,104.61,71.03087174]
[1743981645302,71.03087174,104.64,104.59,16.298]
[1743981645505,71.03087174,104.63,104.59,16.298]
[1743981646012,71.03087174,104.64,104.59,87.32887174]
[1743981646201,9.5563,104.65,104.59,6.7374]
[1743981646202,71.03087174,104.63,104.59,6.7374]
[1743981646514,9.5538,104.67,104.59,87.32897174]
[1743981646693,9.5538,104.67,104.59,40.2009]
[1743981646895,81.2,104.68,104.61,71.03087174]
[1743981646896,71.03087174,104.66,104.61,71.03087174]
[1743981647217,9.5532,104.68,104.6,71.03087174]
[1743981647392,9.5532,104.68,104.62,71.03087174]
[1743981647588,71.03087174,104.66,104.61,71.03087174]
[1743981647991,71.03087174,104.65,104.6,9.5594]
[1743981648216,71.03087174,104.64,104.59,87.32887174]
[1743981648395,71.03087174,104.63,104.59,6.7374]
[1743981648589,33.4417,104.66,104.58,21.799]
[1743981648795,71.03087174,104.63,104.58,92.82987174]
[1743981648986,71.03087174,104.61,104.58,0.063]
[1743981649295,71.03087174,104.59,104.58,0.063]
[1743981649908,80.59197174,104.59,104.58,0.063]
[1743981650103,152.04932819,104.59,104.58,0.063]
[1743981650304,170.69897705,104.59,104.58,0.063]
[1743981650507,99.66810531,104.59,104.58,0.063]
[1743981651213,9.5606,104.6,104.58,0.063]
[1743981651401,71.03087174,104.59,104.58,0.063]
[1743981652101,81.2,104.62,104.58,0.063]
[1743981652310,71.03087174,104.64,104.58,12.2924]
[1743981652525,71.03087174,104.66,104.62,71.03087174]
[1743981652711,9.5524,104.69,104.62,71.03087174]
[1743981653215,71.03087174,104.65,104.59,6.9114]
[1743981653407,71.03087174,104.64,104.59,6.9114]
[1743981653738,71.03087174,104.6,104.58,12.2924]
[1743981653919,18.64964886,104.63,104.58,0.063]
[1743981654227,71.03087174,104.6,104.58,0.063]
[1743981654716,71.03087174,104.59,104.58,0.063]
[1743981655088,33.88088471,104.62,104.58,0.063]
[1743981655296,71.03087174,104.59,104.58,0.063]
[1743981655897,71.03087174,104.6,104.58,0.063]
[1743981656129,71.03087174,104.59,104.58,0.063]
[1743981656631,9.5598,104.61,104.58,0.063]
[1743981656832,71.03087174,104.59,104.58,0.063]
[1743981657038,71.03087174,104.6,104.58,0.063]
[1743981657213,71.03087174,104.62,104.58,0.063]
[1743981657536,81.2,104.64,104.58,0.063]
[1743981657698,71.03087174,104.62,104.58,0.063]
[1743981658012,71.03087174,104.63,104.59,9.5611]
[1743981658217,71.03087174,104.63,104.58,80.65567174]
[1743981658402,71.03087174,104.62,104.58,0.063]
[1743981658719,71.03087174,104.61,104.58,0.063]
[1743981658923,71.03087174,104.6,104.58,0.063]
[1743981659119,9.5575,104.63,104.58,0.063]
[1743981659339,71.03087174,104.6,104.58,0.063]
[1743981659508,71.03087174,104.61,104.58,0.063]
[1743981659904,71.03087174,104.6,104.58,0.063]
[1743981661735,20.0,104.68,104.59,71.03087174]
[1743981661736,81.2,104.66,104.59,71.03087174]
[1743981662023,71.03087174,104.64,104.58,6.9578]
[1743981662233,71.03087174,104.62,104.58,6.9578]
[1743981662425,71.03087174,104.59,104.58,0.063]
[1743981662899,71.03087174,104.6,104.58,0.063]
[1743981663098,81.2,104.63,104.58,9.6247]
[1743981663304,71.03087174,104.6,104.58,0.063]
[1743981663722,71.03087174,104.59,104.58,0.063]
[1743981664304,80.59197174,104.59,104.58,0.063]
[1743981664521,170.69897705,104.59,104.58,0.063]
[1743981664825,19.07613357,104.57,104.56,0.063]
[1743981665029,18.933972,104.55,104.52,0.063]
[1743981665327,90.10700531,104.53,104.52,0.063]
[1743981665528,161.13787705,104.53,104.52,0.063]
[1743981665827,71.03087174,104.53,104.52,0.063]
[1743981666127,161.13787705,104.53,104.52,0.0001]
[1743981666426,161.13787705,104.53,104.49,0.063]
[1743981666427,9.5693,104.5,104.49,0.063]
[1743981666737,125.67630531,104.5,104.49,0.0001]
[1743981666899,149.59970531,104.5,104.47,0.063]
[1743981667103,90.10700531,104.48,104.47,0.063]
[1743981667299,19.07613357,104.47,104.44,0.03]
[1743981667532,19.07613357,104.48,104.44,0.03]
[1743981667744,71.03087174,104.45,104.44,0.03]
[1743981668107,81.2,104.49,104.44,0.03]
[1743981668306,71.03087174,104.45,104.44,0.03]
[1743981668506,90.10700531,104.45,104.44,0.03]
[1743981668818,171.30700531,104.45,104.37,12.98707735]
[1743981669048,71.03087174,104.38,104.37,0.46107735]
[1743981669408,89.96484374,104.38,104.37,0.46107735]
[1743981669963,90.10700531,104.38,104.37,0.46107735]
[1743981670143,45.433972,104.36,104.34,17.22987222]
[1743981670341,28.517972,104.34,104.33,88.72147223]
[1743981670535,170.57971548,104.34,104.33,88.72147223]
[1743981670735,0.28432314,104.32,104.25,9.5916]
[1743981671050,81.2,104.37,104.26,71.03087174]
[1743981671353,71.03087174,104.34,104.29,71.03087174]